Cogmind - Beta 13 @@@ ROGUE MODE // 2024.03.13 @ 12:53:22 Player: Puck Result: Self-destructed Performance ------------- Evolutions (2) 1000 Regions Visited (5) 1000 Robots Destroyed (16) 80 Value Destroyed (342) 342 Prototype IDs (1) 20 Alien Tech Used (0) 0 Bonus (-41) -41 TOTAL SCORE: 2401 Bonus ------- Friendly Fire -41 Cogmind --------- Core Integrity 550/550 Matter 219/300 Energy 19/100 System Corruption 0% Temperature Cool (0) Movement Hovering (46) Location -8/Materials Parts ------- > --- POWER (1) -------- (None) > --- PROPULSION (4) --- Improved Airjet Improved Airjet Improved Airjet Improved Airjet > --- UTILITY (4) ------ Medium Storage Unit Weight Redist. System Improved Targeting Computer > --- WEAPON (2) ------- Light Assault Rifle Mini Grenade Launcher > --- INVENTORY (10) --- Combat Airjet Flight Unit Flight Unit Improved Heat Sink High-capacity Storage Unit Experimental Sensor Array Insulated Plating Shield Generator Peak State ------------ > --- POWER ------------ (None) > --- PROPULSION ------- Improved Airjet Improved Airjet Improved Airjet Improved Airjet > --- UTILITY ---------- Medium Storage Unit Weight Redist. System Improved Targeting Computer > --- WEAPON ----------- Light Assault Rifle Mini Grenade Launcher > --- INVENTORY -------- Combat Airjet Flight Unit Flight Unit Improved Heat Sink High-capacity Storage Unit Experimental Sensor Array Insulated Plating Shield Generator [Rating: 30] Favorites ----------- Power Light Ion Engine Engine Light Ion Engine Propulsion Aluminum Leg Leg Aluminum Leg Hover Unit Improved Airjet Flight Unit Flight Unit Utility Improved Targeting Computer Device Weight Redist. System Storage Medium Storage Unit Processor Improved Targeting Computer Weapon Light Assault Rifle Energy Gun EM Pulse Gun Ballistic Gun Light Assault Rifle Launcher Mini Grenade Launcher Build | -11 -10 -10 -10 -9 -8 ------- Run | Yrd Mat Min Exi Min Mat Slots Evolved 4 | . . . . . 4 Power . | . . . . . . Propulsion 2 | . . . . . 2 Utility 2 | . . . . . 2 Weapon . | . . . . . . Parts Attached 18 | . 6 4 1 . 7 Power . | . . . . . . Engine . | . . . . . . Core . | . . . . . . Reactor . | . . . . . . Propulsion 9 | . . 3 . . 6 Treads . | . . . . . . Leg 3 | . . 3 . . . Wheel . | . . . . . . Hover 4 | . . . . . 4 Flight 2 | . . . . . 2 Utility 3 | . 1 1 . . 1 Device 1 | . . . . . 1 Storage 1 | . . 1 . . . Processor 1 | . 1 . . . . Hackware . | . . . . . . Protection . | . . . . . . Artifact . | . . . . . . Weapon 6 | . 5 . 1 . . Energy Gun 2 | . 2 . . . . Energy Cannon . | . . . . . . Ballistic Gun 2 | . 2 . . . . Ballistic Cannon . | . . . . . . Launcher 2 | . 1 . 1 . . Special Weapon . | . . . . . . Impact Weapon . | . . . . . . Slashing Weapon . | . . . . . . Piercing Weapon . | . . . . . . Special Melee Weapon . | . . . . . . Unidentified Prototypes 1 | . . . . . 1 Parts Lost 6 | . 2 4 . . . Power 1 | . . 1 . . . Propulsion 2 | . . 2 . . . Utility . | . . . . . . Weapon 3 | . 2 1 . . . Highest Loss Streak 2 | . 2 2 . . . To Critical Strikes . | . . . . . . Average Slot Usage (%) 78 | . 95 79 57 71 67 Engine 4 | . 14 . . . . Leg 21 | . 28 23 14 14 . Storage 13 | . 14 14 14 14 9 Processor 12 | . 10 14 14 14 9 Energy Gun 6 | . 18 . . . . Ballistic Gun 15 | . 8 26 14 14 9 Launcher 1 | . . . . 14 9 Naked Turns . | . . . . . . Heaviest Build 13 | 12 12 13 12 12 12 Greatest Support 36 | 20 20 25 10 10 36 Greatest Overweight (x) 1 | . . 1 1 1 1 Average Overweight (x) . | . . . 1 1 . Largest Inventory Capacity 10 | . 8 10 10 10 10 Average Capacity 9 | . 8 9 10 10 10 Most Carried 10 | . 8 10 10 9 10 Average Carried 8 | . 7 9 9 9 6 Final Capacity 10 | 8 8 10 10 10 10 Final Carried 10 | 6 8 10 9 9 8 Class Distribution -------------------- 100% | Mutant Dominant Class ---------------- Mutant | -10/Materials Mutant | -10/Mines Mutant | -10/Exiles Mutant | -9/Mines Mutant | -8/Materials Resources | -11 -10 -10 -10 -9 -8 ----------- Run | Yrd Mat Min Exi Min Mat Matter Collected 455 | 200 107 138 . 10 . Remotely . | . . . . . . Salvage Created 634 | . 457 177 . . . Parts 38 | . 33 5 . . . Haulers Intercepted 2 | . 2 . . . . Recyclers Shooed 2 | . 1 . . . 1 Parts Field Recycled . | . . . . . . Retrieved Matter . | . . . . . . Parts Self-Destructed . | . . . . . . Prevented . | . . . . . . Kills | -11 -10 -10 -10 -9 -8 ------- Run | Yrd Mat Min Exi Min Mat Combat Hostiles Destroyed 15 | . 7 8 . . . Guns 12 | . 4 8 . . . AOE 3 | . 3 . . . . Classes Destroyed 7 | . 6 1 . . . Worker 1 | . 1 . . . . Hauler 2 | . 2 . . . . Recycler 1 | . 1 . . . . Watcher 3 | . 3 . . . . Swarmer 3 | . 3 . . . . Grunt 6 | . 4 2 . . . Assembled 6 | . . 6 . . . Best Kill Streak 4 | . 4 3 . . . Combat Bots Only 3 | . 3 3 . . . Max Kills in Single Turn 3 | . 3 1 . . . Gunslinging . | . . . . . . Exploded 3 | . 3 . . . . Melee . | . . . . . . Uniques/NPCs Destroyed . | . . . . . . Combat | -11 -10 -10 -10 -9 -8 -------- Run | Yrd Mat Min Exi Min Mat Hostile Shots Fired 83 | . 37 36 . . 10 Missed 24 | . 8 11 . . 5 Damage Taken 828 | . 352 404 . . 72 Core 171 | . 50 121 . . . Absorbed by Shields . | . . . . . . Core Remaining (%) 65 | 100 . . . 31 . Volleys Fired 73 | . 33 29 . . 11 Largest 2 | . 2 2 . . 1 Hottest 80 | . 80 40 . . 20 Shots Fired 127 | . 58 58 . . 11 Gun 127 | . 58 58 . . 11 Cannon . | . . . . . . Launcher . | . . . . . . Special . | . . . . . . Kinetic 90 | . 21 58 . . 11 Thermal . | . . . . . . Explosive . | . . . . . . Electromagnetic 37 | . 37 . . . . Robot Hit Streak 10 | . 9 10 . . 2 Robot Miss Streak 5 | . 5 2 . . 2 Penetration Max . | . . . . . . Secondary Targets . | . . . . . . Shots Hit Robots 82 | . 39 38 . . 5 Core Hits 43 | . 23 19 . . 1 Critical Kills . | . . . . . . Critical Parts Destroyed . | . . . . . . Critical Strikes . | . . . . . . Melee Attacks . | . . . . . . Impact . | . . . . . . Slashing . | . . . . . . Piercing . | . . . . . . Sneak Attacks . | . . . . . . Combat Hostiles . | . . . . . . Follow-up Attacks . | . . . . . . Damage Inflicted 1141 | . 678 425 . . 38 Guns 992 | . 529 425 . . 38 Cannons . | . . . . . . Explosions 138 | . 138 . . . . Melee . | . . . . . . Ramming 11 | . 11 . . . . Kinetic 623 | . 160 425 . . 38 Thermal 138 | . 138 . . . . Explosive . | . . . . . . Electromagnetic 369 | . 369 . . . . Impact . | . . . . . . Slashing . | . . . . . . Piercing . | . . . . . . Highest Corruption . | . . . . . . Average Corruption . | . . . . . . Corruption Purged . | . . . . . . Corruption Blocked . | . . . . . . Overload Shots . | . . . . . . Overflow Damage . | . . . . . . Projectiles . | . . . . . . Explosions . | . . . . . . Melee . | . . . . . . Knockbacks . | . . . . . . Impact . | . . . . . . Kinetic . | . . . . . . Secondary . | . . . . . . Self-Inflicted Damage . | . . . . . . Shots . | . . . . . . Rammed . | . . . . . . Targets Rammed 2 | . 2 . . . . Kicked 2 | . 2 . . . . Crushed . | . . . . . . Highest Temperature 126 | . 126 27 . . 2 Average Temperature 37 | . 41 10 . . 2 Received Heat Transfer 291 | . 174 99 . . 18 Siege Activations . | . . . . . . Robots Corrupted . | . . . . . . Combat Hostiles . | . . . . . . Parts Fried 1 | . 1 . . . . Impact Corruptions . | . . . . . . Robots Melted . | . . . . . . Combat Hostiles . | . . . . . . Parts Melted . | . . . . . . Heat Transferred 200 | . 200 . . . . Parts Sabotaged . | . . . . . . Parts Stolen . | . . . . . . Parts Stripped . | . . . . . . Power Chain Reactions 3 | . 3 . . . . Alert | -11 -10 -10 -10 -9 -8 ------- Run | Yrd Mat Min Exi Min Mat Peak Influence 189 | . 189 71 . . 60 Initial 26 | . . 26 . . . Average 57 | . 89 35 . . 24 Maximum Alert Level . | . . . . . . Low Security (%) 100 | . 100 100 . 100 100 Level 1 . | . . . . . . Level 2 . | . . . . . . Level 3 . | . . . . . . Level 4 . | . . . . . . Level 5 . | . . . . . . High Security . | . . . . . . Max Security . | . . . . . . Squads Dispatched 2 | . . . . . 2 Investigation 1 | . . . . . 1 Extermination . | . . . . . . Reinforcement 1 | . . . . . 1 Assault . | . . . . . . Garrison . | . . . . . . Intercept . | . . . . . . Searches Triggered . | . . . . . . Construction Impeded . | . . . . . . Haulers Reinforced . | . . . . . . Active Scanning Responses . | . . . . . . Cargo Convoy Interrupts . | . . . . . . Stealth | -11 -10 -10 -10 -9 -8 --------- Run | Yrd Mat Min Exi Min Mat Distress Signals . | . . . . . . Communications Jammed . | . . . . . . Distress Signals . | . . . . . . Times Spotted 26 | . 10 11 . . 5 Peak Tracking Total 3 | . 3 2 . . 3 Tactical Retreats . | . . . . . . Traps | -11 -10 -10 -10 -9 -8 ------- Run | Yrd Mat Min Exi Min Mat Traps Triggered 1 | . . . . . 1 Indirectly . | . . . . . . Trap Hack Attempts . | . . . . . . Triggered . | . . . . . . Disarmed . | . . . . . . Reprogrammed . | . . . . . . Reused . | . . . . . . Traps Extracted . | . . . . . . Installed . | . . . . . . Triggered . | . . . . . . Machines | -11 -10 -10 -10 -9 -8 ---------- Run | Yrd Mat Min Exi Min Mat Machines Disabled 2 | . 2 . . . . Max in Single Turn 1 | . 1 . . . . Machines Repaired . | . . . . . . Machines Dismantled . | . . . . . . Machines Sabotaged . | . . . . . . Overloaded Fab Kills . | . . . . . . Hacking | -11 -10 -10 -10 -9 -8 --------- Run | Yrd Mat Min Exi Min Mat Machines Accessed 9 | . 6 1 1 . 1 Terminals 7 | . 6 . . . 1 Fabricators . | . . . . . . Repair Stations . | . . . . . . Recycling Units . | . . . . . . Scanalyzers . | . . . . . . Garrison Access . | . . . . . . Total Hacks 30 | . 24 1 2 . 3 Successful 12 | . 9 1 2 . . Failed 17 | . 14 . . . 3 Catastrophic 3 | . 2 . . . 1 Database Lockouts 1 | . 1 . . . . Manual 17 | . 14 . . . 3 Terminals 27 | . 24 . . . 3 Fabricators . | . . . . . . Repair Stations . | . . . . . . Recycling Units . | . . . . . . Scanalyzers . | . . . . . . Garrison Access . | . . . . . . Terminal Hacks 11 | . 8 1 2 . . Record 2 | . . . 2 . . Part Schematic 4 | . 4 . . . . Robot Analysis 1 | . 1 . . . . Open Door 1 | . . 1 . . . Scanalyzer Index 1 | . 1 . . . . Locate Traps 2 | . 2 . . . . Fabricator Hacks . | . . . . . . Repair Station Hacks . | . . . . . . Recycling Unit Hacks . | . . . . . . Scanalyzer . | . . . . . . Garrison Access Hacks . | . . . . . . Unauthorized Hacks 1 | . 1 . . . . Terminals 1 | . 1 . . . . Botnet 1 | . 1 . . . . Fabricators . | . . . . . . Repair Stations . | . . . . . . Recycling Units . | . . . . . . Scanalyzers . | . . . . . . Garrison Access . | . . . . . . Data Cores Recovered . | . . . . . . Used . | . . . . . . Hacking Detections 7 | . 6 . . . 1 Full Trace Events 1 | . 1 . . . . Feedback Events . | . . . . . . Feedback Blocked . | . . . . . . Robot Schematics Acquired . | . . . . . . Robots Built . | . . . . . . Authchips . | . . . . . . Time . | . . . . . . Total Robot Build Rating . | . . . . . . Part Schematics Acquired 4 | . 4 . . . . Parts Built . | . . . . . . Authchips . | . . . . . . Time . | . . . . . . Total Part Build Rating . | . . . . . . Parts Repaired . | . . . . . . Time . | . . . . . . Parts Recycled . | . . . . . . Recycled Matter . | . . . . . . Retrieved Matter . | . . . . . . Retrieved Components . | . . . . . . Parts Scanalyzed . | . . . . . . Part Schematics Acquired . | . . . . . . Parts Damaged . | . . . . . . Bothacking | -11 -10 -10 -10 -9 -8 ------------ Run | Yrd Mat Min Exi Min Mat Used RIF Installer . | . . . . . . Robots Hacked . | . . . . . . Non-combat . | . . . . . . Combat . | . . . . . . Robot Hacks Applied . | . . . . . . Relay Couplers Released . | . . . . . . Fabnet Peak Effective % . | . . . . . . Robots Rewired . | . . . . . . Allies Hacked . | . . . . . . Hacks Repelled . | . . . . . . Allies | -11 -10 -10 -10 -9 -8 -------- Run | Yrd Mat Min Exi Min Mat Total Allies 2 | . . 2 . . . Largest Group 2 | . . 2 1 . . Highest-Rated Group 46 | . . 46 31 . . Highest-Rated Ally 31 | . . 31 31 . . Total Orders . | . . . . . . Ally Attacks 17 | . . 17 . . . Total Damage 124 | . . 124 . . . Kills 3 | . . 3 . . . Allies Corrupted . | . . . . . . Allies Melted . | . . . . . . Intel | -11 -10 -10 -10 -9 -8 ------- Run | Yrd Mat Min Exi Min Mat Robot Analysis Total 1 | . 1 . . . . Derelict Logs Recovered 3 | . . 2 . 1 . Drone Launches . | . . . . . . Drone Recoveries . | . . . . . . Exploration | -11 -10 -10 -10 -9 -8 ------------- Run | Yrd Mat Min Exi Min Mat Turns Passed 2586 | . 911 775 621 156 123 Spaces Moved 1656 | 1 653 506 327 83 86 Core . | . . . . . . Treads . | . . . . . . Legs 1571 | 1 653 506 327 83 1 Wheels . | . . . . . . Hover 26 | . . . . . 26 Flight 59 | . . . . . 59 Fastest Speed 37 | 120 120 120 190 190 37 Average Speed 137 | 120 120 134 190 190 41 Slowest Speed 190 | 120 120 190 190 190 190 Overloaded Moves . | . . . . . . Propulsion Burnouts . | . . . . . . Robots Hopped . | . . . . . . Cave-ins Triggered . | . . . . . . Exploration Rate (%) 50 | 1 98 80 82 30 11 Regions Visited 5 Branch Regions 3 Pre-discovered Areas 2 | . . . 1 1 . Known Exits Taken . | . . . . . . Unknown Exits Taken 5 | 1 1 1 1 1 . Scrap Searched 2 | . . 1 . 1 . Spaces Dug . | . . . . . . Terrain Destroyed 7 | . 7 . . . . Melee . | . . . . . . Projectile . | . . . . . . AOE 7 | . 7 . . . . Terrain Rammed . | . . . . . . Walls Destroyed . | . . . . . . Machines Disabled . | . . . . . . Actions | -11 -10 -10 -10 -9 -8 --------- Run | Yrd Mat Min Exi Min Mat Total 1848 | . 724 550 327 82 165 Wait 75 | . 13 6 . . 56 Move 1651 | . 652 505 326 82 86 Hop . | . . . . . . Pick Up 15 | . 10 3 . . 2 Fast Attach 6 | . 3 1 . . 2 Attach 6 | . . . 1 . 5 Detach 2 | . . . . . 2 Swap 6 | . 3 3 . . . Drop 12 | . 8 3 . . 1 Fire 73 | . 33 29 . . 11 Melee . | . . . . . . Ram . | . . . . . . Kick 2 | . 2 . . . . Crush . | . . . . . . Escape Stasis . | . . . . . . Rewire . | . . . . . . Trap . | . . . . . . Miscellaneous . | . . . . . . Route ------- -11/Scrapyard -10/Materials (discovered 5 exits: [*Mat x3] / *Min x2) -10/Mines (discovered 2 exits: [*Mat] / *Exi) -10/Exiles -9/Mines -8/Materials (discovered 1 exit: Sto) History --------- Turn | Location | Event 1 | -11/Scrapyard | Discovered new exit (range 0) 1 | -11/Scrapyard | Entered Materials 84 | -10/Materials | Central database locked down 122 | -10/Materials | Discovered new exit (range 16) 307 | -10/Materials | Build established: Mutant 350 | -10/Materials | Discovered new exit (range 8) 507 | -10/Materials | Discovered new exit (range 6) 533 | -10/Materials | Discovered new exit (range 13) 790 | -10/Materials | Discovered new exit (range 9) 912 | -10/Materials | Entered Mines 930 | -10/Mines | Met a Derelict bent on vengeance 992 | -10/Mines | Found a damaged Exp. Sensor Array with a note attached 995 | -10/Mines | Found Prototype Device 1036 | -10/Mines | Assembled infested the area 1041 | -10/Mines | Assisted by a Guerilla fighting off Assembled 1059 | -10/Mines | Discovered new exit (range 6) 1122 | -10/Mines | Met a Derelict who couldn't figure out how to use a Trap Extractor 1470 | -10/Mines | Core integrity fell below 50% 1515 | -10/Mines | Learned Materials security intel 1680 | -10/Mines | Deemed a non-threat by the Exiles lab entrance 1680 | -10/Mines | Discovered new exit (range 5) 1687 | -10/Mines | Entered Exiles 1687 | -10/Exiles | Accompanied by 1 ally 1717 | -10/Exiles | Led the pair of lost Derelicts to a safe place 1733 | -10/Exiles | Met 8R-AWN 1765 | -10/Exiles | Met EX-HEX 1866 | -10/Exiles | Met EX-DEC 1903 | -10/Exiles | Visited The Gauntlet 2126 | -10/Exiles | Learned location of Zion (-6) 2168 | -10/Exiles | Met EX-BIN 2286 | -10/Exiles | Discovered new exit (range 11) 2308 | -10/Exiles | Entered Mines 2403 | -9/Mines | Found a hidden stash of uninstalled traps 2441 | -9/Mines | Discovered new exit (range 8) 2464 | -9/Mines | Entered Materials 2464 | -8/Materials | Evolved 4 slots: Propulsion x2, Utility x2 2465 | -8/Materials | Identified exit to Storage 2587 | -8/Materials | Self-destructed Last Messages --------------- Loading 1 Storage entrance... Loading Materials security intel (x10)... 02466_ Connecting with Terminal... 02466_ Current location identified: Materials 02466_ Connecting with Terminal... 02469_ Dropped Aluminum Leg. 02470_ Connecting with Terminal... 02534_ K-01 Serf collects debris. 02546_ Acquired Prototype Hover Unit. 02546_ Identified Imp. Airjet. 02548_ Acquired Imp. Airjet. 02568_ K-01 Serf collects debris. 02581_ O-16 Technician: "IFF HANDSHAKE FAILED. SECURING TERMINAL." 02584_ O-16 Technician uses terminal to summon reinforcements. 02584_ ALERT: Hostiles spotted, dispatching reinforcements to Terminal M011. 02584_ O-16 Technician locks terminal. 02587_ Triggered Alarm Trap. 02587_ An alarm sounds. 02587_ ALERT: Alarm triggered, dispatching investigation squad. Map ----- +----------------------------------------------------+ | ???# #?# !!#???????????????????? | | ???####+##### #???????????????????? | | ????# #???????????????????? | | ????# ############## !!#???????????????????? | | ????# ###########??# !!#???????????????????? | | ????# # #??# #####???????????????????? | | ????# # """ #??# #???????????????????????? | | ????# # """ #??# #???????????????????????? | | ????# # """ #??# #???????????????????????? | | ????# + [[[#??# #???????????????????????? | | ????# # [[[#??# #???????????????????????? | | ????# # ! [[ #??# #???????????????????????? | | ????# # #??# #???????????????????????? | | ????# ###########??# #???????????????????????? | | ????# #????????????# #???????????????????????? | | ????# #????????????# #???????????????????????? | | ??### #????????????# #???????????????????????? | | ??#"" #????????????# #???????????????????????? | | ??#"T #????????????# #???????????????????????? | | ??#""= #????????????# #???????????????????????? | | ??### #????????????# #???????#######?????????? | | ????# #???????????## #????? #?????????? | | ????#####???????????#T ##### #?????????? | | ????????????????????##o u/ """ ?????????????? | | ?????????????????????# ## """""?????????????? | | ?????????????????????# @ #????????????????????? | | ?????????????????????# #????????????????????? | | ?????????????????????# #????????????????????? | | ?????????????????????# #????????????????????? | | ?????????????????????# #????????????????????? | | ?????????????????????# #????????????????????? | | ?????????????????????# #????????????????????? | | ?????????????????????# ????????????????????? | | ?????????????????????######????????????????????? | | ???????????????????????????????????????????????? | | ???????????????????????????????????????????????? | | ???????????????????????????????????????????????? | | | | | | | | | | | | | | | | | | | | | | | | | | | +----------------------------------------------------+ Best States ------------- Heat Dissipation 31 Energy Generation 10 Energy Capacity 125 Matter Stores 300 Matter Capacity 300 Sight Range 16 Terrain Scan Density 10 Additional Mass Support 6 Evasion (%) 62 Targeting Accuracy 6 Item Schematics ----------------- Flight Unit | -10/Materials | Hacked Hcp. Storage Unit | -10/Materials | Hacked Med. Storage Unit | -10/Materials | Hacked Lgt. Ion Engine | -10/Materials | Hacked Robot Schematics ------------------ None Fabricated ------------ Nothing Alien Tech Used ----------------- None Achievements -------------- None Challenges ------------ None Game ------ Seed AluminumServoMatter Manual? 0 Play Time 00:23:40 Cumulative 259.7 hours Start 2024.03.13 @ 11:51:35 End 2024.03.13 @ 12:53:22 Sessions 1 Manual Loads 0 Difficulty Rogue Special Mode None Game No. 114 Rogue 74 Adventurer 29 Explorer 11 Win Type - Total 11 Types 6/0/1/2/0/0/1/0/1 Lore% 60 Gallery% 78 Achievement% 76 Wizard Run 0 Options --------- Layout 0 ASCII 0 Keyboard 0 Movement Numpad Keybinds 0 Fullscreen 2 Font 24/Smallcaps Map View 76x50 Zoom Use 0% Tactical HUD 1 Map Filters NONE Filters LOW_CONTRAST(13,24,33) Steam 1 RUN: bee16af9-f3f9-4dac-b93e-2f90bd5e500d